[Event "Early-Titled-Tuesday-Blitz-February-20-2024"]
[Site "Chess.com"]
[Date "2024.02.20"]
[Round "10"]
[White "Lennis93"]
[Black "ContrVersia"]
[Result "0-1"]
[WhiteElo "2695"]
[BlackElo "2840"]
[TimeControl "180+1"]
[EndTime "9:56:35 PST"]
[Termination "ContrVersia won by resignation"]

1. d4 {[%clk 0:02:59.7]} 1... Nf6 {[%clk 0:02:59.4]} 2. c4 {[%clk 0:02:59.5]}
2... g6 {[%clk 0:02:59.7]} 3. Nc3 {[%clk 0:02:58]} 3... Bg7 {[%clk 0:02:59.9]}
4. e4 {[%clk 0:02:58.1]} 4... d6 {[%clk 0:03:00.1]} 5. Nf3 {[%clk 0:02:58.3]}
5... O-O {[%clk 0:02:59.9]} 6. h3 {[%clk 0:02:58.8]} 6... e5 {[%clk 0:02:58.3]}
7. d5 {[%clk 0:02:58.9]} 7... Na6 {[%clk 0:02:58.2]} 8. Bd3 {[%clk 0:02:57.7]}
8... Nh5 {[%clk 0:02:56.8]} 9. O-O {[%clk 0:02:48.1]} 9... Nf4 {[%clk
0:02:55.2]} 10. Bxf4 {[%clk 0:02:47.7]} 10... exf4 {[%clk 0:02:55.2]} 11. Qd2
{[%clk 0:02:48.4]} 11... Nc5 {[%clk 0:02:53.6]} 12. Bc2 {[%clk 0:02:47.4]} 12...
Qf6 {[%clk 0:02:51.2]} 13. Nb5 {[%clk 0:02:41.2]} 13... Qxb2 {[%clk 0:02:27.7]}
14. Nxc7 {[%clk 0:02:39.6]} 14... Rb8 {[%clk 0:02:19.5]} 15. Nb5 {[%clk
0:02:38.1]} 15... Qf6 {[%clk 0:02:14.5]} 16. Nxa7 {[%clk 0:02:37.4]} 16... Bd7
{[%clk 0:02:13]} 17. Nb5 {[%clk 0:02:33.4]} 17... Rfe8 {[%clk 0:02:08.1]} 18.
Rae1 {[%clk 0:02:21.4]} 18... g5 {[%clk 0:02:03.2]} 19. Nfd4 {[%clk 0:02:06]}
19... Ra8 {[%clk 0:01:52.3]} 20. Bb1 {[%clk 0:02:00.5]} 20... h5 {[%clk
0:01:40.5]} 21. Qc2 {[%clk 0:02:00.1]} 21... g4 {[%clk 0:01:25.7]} 22. hxg4
{[%clk 0:01:44.8]} 22... hxg4 {[%clk 0:01:26.6]} 23. Nf5 {[%clk 0:00:34.7]}
23... Bxf5 {[%clk 0:01:20.3]} 24. exf5 {[%clk 0:00:35.6]} 24... g3 {[%clk
0:01:20.9]} 25. Nc7 {[%clk 0:00:30.6]} 25... Qh4 {[%clk 0:01:16.5]} 0-1

[Event "Early-Titled-Tuesday-Blitz-February-20-2024"]
[Site "Chess.com"]
[Date "2024.02.20"]
[Round "10"]
[White "ural58"]
[Black "ClaudiaSof"]
[Result "1-0"]
[WhiteElo "2501"]
[BlackElo "2330"]
[TimeControl "180+1"]
[EndTime "9:56:38 PST"]
[Termination "ural58 won by resignation"]

1. e4 {[%clk 0:02:59.2]} 1... c5 {[%clk 0:03:00.1]} 2. b3 {[%clk 0:02:58.3]}
2... Nc6 {[%clk 0:02:59.3]} 3. Bb2 {[%clk 0:02:58.3]} 3... d6 {[%clk 0:02:55.5]}
4. f4 {[%clk 0:02:55.4]} 4... Nf6 {[%clk 0:02:55]} 5. Qf3 {[%clk 0:02:55.1]}
5... e6 {[%clk 0:02:53.7]} 6. Nc3 {[%clk 0:02:41.9]} 6... Nd4 {[%clk 0:02:53.6]}
7. Qd3 {[%clk 0:02:41.6]} 7... Be7 {[%clk 0:02:50.6]} 8. Nf3 {[%clk 0:02:40.9]}
8... Nc6 {[%clk 0:02:46.4]} 9. O-O-O {[%clk 0:02:40]} 9... O-O {[%clk
0:02:44.8]} 10. g4 {[%clk 0:02:31.4]} 10... a6 {[%clk 0:02:41.1]} 11. g5 {[%clk
0:02:30.4]} 11... Nd7 {[%clk 0:02:39.7]} 12. h4 {[%clk 0:02:27.2]} 12... b5
{[%clk 0:02:38.5]} 13. Bh3 {[%clk 0:02:21.4]} 13... Nb6 {[%clk 0:02:35.5]} 14.
f5 {[%clk 0:02:17.2]} 14... c4 {[%clk 0:02:34.9]} 15. Qe3 {[%clk 0:02:15.7]}
15... cxb3 {[%clk 0:02:27.7]} 16. axb3 {[%clk 0:02:15.2]} 16... exf5 {[%clk
0:02:10.7]} 17. exf5 {[%clk 0:02:13.2]} 17... d5 {[%clk 0:02:10.8]} 18. f6
{[%clk 0:02:11.8]} 18... gxf6 {[%clk 0:01:59.6]} 19. Bxc8 {[%clk 0:02:07.7]}
19... Rxc8 {[%clk 0:01:58.8]} 20. gxf6 {[%clk 0:01:57.2]} 20... Bxf6 {[%clk
0:01:57.8]} 21. Rdg1+ {[%clk 0:01:54.5]} 21... Kh8 {[%clk 0:01:57.5]} 22. Qh6
{[%clk 0:01:51.2]} 22... Rg8 {[%clk 0:01:34.9]} 23. Ng5 {[%clk 0:01:48.6]} 23...
Rg7 {[%clk 0:01:33.2]} 24. Rf1 {[%clk 0:01:19.8]} 24... Bxg5 {[%clk 0:01:18.8]}
25. hxg5 {[%clk 0:01:17]} 25... d4 {[%clk 0:01:16.6]} 26. Ne4 {[%clk 0:01:05.5]}
26... Nb4 {[%clk 0:01:09.5]} 27. Nf6 {[%clk 0:00:58.4]} 27... Rxc2+ {[%clk
0:01:09.1]} 28. Kb1 {[%clk 0:00:58.3]} 28... Rxb2+ {[%clk 0:00:55.2]} 29. Kxb2
{[%clk 0:00:57]} 29... Nd3+ {[%clk 0:00:55.1]} 30. Ka1 {[%clk 0:00:55.6]} 1-0

[Event "Early-Titled-Tuesday-Blitz-February-20-2024"]
[Site "Chess.com"]
[Date "2024.02.20"]
[Round "10"]
[White "DefiantChair"]
[Black "Chessdude1987"]
[Result "1-0"]
[WhiteElo "2585"]
[BlackElo "2346"]
[TimeControl "180+1"]
[EndTime "9:56:39 PST"]
[Termination "DefiantChair won on time"]

1. e4 {[%clk 0:03:00.9]} 1... e6 {[%clk 0:02:59.6]} 2. d4 {[%clk 0:03:00.5]}
2... d5 {[%clk 0:03:00]} 3. Nd2 {[%clk 0:03:01.4]} 3... c5 {[%clk 0:02:59.8]} 4.
exd5 {[%clk 0:03:01.6]} 4... Qxd5 {[%clk 0:03:00.7]} 5. Ngf3 {[%clk 0:03:02.5]}
5... cxd4 {[%clk 0:03:00.1]} 6. Bc4 {[%clk 0:03:03.1]} 6... Qd6 {[%clk
0:03:00.7]} 7. O-O {[%clk 0:03:04]} 7... Nf6 {[%clk 0:03:01]} 8. Nb3 {[%clk
0:03:04.1]} 8... Nc6 {[%clk 0:03:01.5]} 9. Nbxd4 {[%clk 0:03:04.8]} 9... Nxd4
{[%clk 0:03:02.1]} 10. Nxd4 {[%clk 0:03:05.7]} 10... Be7 {[%clk 0:03:02.3]} 11.
Re1 {[%clk 0:03:05.6]} 11... O-O {[%clk 0:02:55.9]} 12. c3 {[%clk 0:03:05.8]}
12... Qc7 {[%clk 0:02:51.5]} 13. Bb3 {[%clk 0:03:00.3]} 13... Bd7 {[%clk
0:02:47.4]} 14. Qf3 {[%clk 0:02:59.8]} 14... a5 {[%clk 0:02:42.1]} 15. Bf4
{[%clk 0:02:59]} 15... Qb6 {[%clk 0:02:41]} 16. Be5 {[%clk 0:02:53.8]} 16... a4
{[%clk 0:02:37.3]} 17. Bc2 {[%clk 0:02:53]} 17... Qxb2 {[%clk 0:02:25]} 18. Rab1
{[%clk 0:02:48.5]} 18... Qxa2 {[%clk 0:02:19.4]} 19. Rxb7 {[%clk 0:02:47.7]}
19... Rfd8 {[%clk 0:01:59.2]} 20. Qg3 {[%clk 0:02:41.2]} 20... Qd5 {[%clk
0:01:47.3]} 21. Rbb1 {[%clk 0:02:40.4]} 21... a3 {[%clk 0:01:30.7]} 22. Be4
{[%clk 0:02:39.4]} 22... Qc4 {[%clk 0:01:22.1]} 23. Bxa8 {[%clk 0:02:38.3]}
23... Rxa8 {[%clk 0:01:23]} 24. Ra1 {[%clk 0:02:33.4]} 24... a2 {[%clk
0:01:18.2]} 25. h4 {[%clk 0:02:32.4]} 25... Bc6 {[%clk 0:01:12.5]} 26. Qg5
{[%clk 0:02:23.8]} 26... h6 {[%clk 0:00:59.8]} 27. Qg3 {[%clk 0:02:16.6]} 27...
Bd5 {[%clk 0:00:50.5]} 28. Ne2 {[%clk 0:02:08.2]} 28... g6 {[%clk 0:00:32.3]}
29. Nf4 {[%clk 0:02:07.1]} 29... Ne4 {[%clk 0:00:25.3]} 30. Qe3 {[%clk
0:02:01.9]} 30... Bc5 {[%clk 0:00:21]} 31. Bd4 {[%clk 0:02:01]} 31... e5 {[%clk
0:00:14.5]} 32. Nxd5 {[%clk 0:01:59.7]} 32... exd4 {[%clk 0:00:06]} 33. Qxe4
{[%clk 0:01:59.3]} 33... Rd8 {[%clk 0:00:02.9]} 34. Nf6+ {[%clk 0:01:58.6]}
34... Kg7 {[%clk 0:00:03.1]} 35. Qe5 {[%clk 0:01:58.7]} 35... dxc3 {[%clk
0:00:02.8]} 36. Ne8+ {[%clk 0:01:58.6]} 1-0

[Event "Early-Titled-Tuesday-Blitz-February-20-2024"]
[Site "Chess.com"]
[Date "2024.02.20"]
[Round "10"]
[White "carloseduar100"]
[Black "Natalya_Buksa"]
[Result "0-1"]
[WhiteElo "2364"]
[BlackElo "2601"]
[TimeControl "180+1"]
[EndTime "9:56:54 PST"]
[Termination "Natalya_Buksa won by checkmate"]

1. e4 {[%clk 0:03:00.3]} 1... c5 {[%clk 0:02:59.6]} 2. Nf3 {[%clk 0:03:00.1]}
2... Nc6 {[%clk 0:02:58.9]} 3. Nc3 {[%clk 0:03:00.4]} 3... e5 {[%clk 0:02:58]}
4. Bc4 {[%clk 0:02:41.5]} 4... Be7 {[%clk 0:02:58]} 5. d3 {[%clk 0:02:41.6]}
5... d6 {[%clk 0:02:58.3]} 6. a4 {[%clk 0:02:41.7]} 6... Nf6 {[%clk 0:02:58.5]}
7. h3 {[%clk 0:02:41.9]} 7... O-O {[%clk 0:02:58.8]} 8. Nd5 {[%clk 0:02:42.2]}
8... Nxd5 {[%clk 0:02:52]} 9. Bxd5 {[%clk 0:02:42]} 9... Be6 {[%clk 0:02:51.5]}
10. Bxc6 {[%clk 0:02:34.7]} 10... bxc6 {[%clk 0:02:51.5]} 11. c4 {[%clk
0:02:35.6]} 11... Rb8 {[%clk 0:02:49.1]} 12. O-O {[%clk 0:02:31.6]} 12... h6
{[%clk 0:02:48.7]} 13. Nh2 {[%clk 0:02:26.1]} 13... f5 {[%clk 0:02:48.7]} 14. f4
{[%clk 0:02:23.9]} 14... fxe4 {[%clk 0:02:48.6]} 15. dxe4 {[%clk 0:02:23.7]}
15... Bxc4 {[%clk 0:02:47.7]} 16. Rf2 {[%clk 0:02:20.4]} 16... exf4 {[%clk
0:02:25.1]} 17. Bxf4 {[%clk 0:02:19.4]} 17... Bh4 {[%clk 0:02:24.7]} 18. g3
{[%clk 0:02:17.4]} 18... Be7 {[%clk 0:02:20.9]} 19. Qg4 {[%clk 0:02:17.5]} 19...
Qc8 {[%clk 0:02:00.4]} 20. Qh5 {[%clk 0:02:11.8]} 20... Bf7 {[%clk 0:01:54.4]}
21. Qf3 {[%clk 0:02:09.5]} 21... Qxh3 {[%clk 0:01:52.8]} 22. Ng4 {[%clk
0:02:00]} 22... Bh5 {[%clk 0:01:50.7]} 23. Nxh6+ {[%clk 0:01:48.9]} 23... gxh6
{[%clk 0:01:50.7]} 24. Qd3 {[%clk 0:01:48.4]} 24... Qg4 {[%clk 0:01:43.8]} 25.
Raf1 {[%clk 0:01:39]} 25... Bf6 {[%clk 0:01:37.7]} 26. Kg2 {[%clk 0:01:33]}
26... Bd4 {[%clk 0:01:35.7]} 27. Bxd6 {[%clk 0:01:15.2]} 27... Rxf2+ {[%clk
0:01:32.7]} 28. Rxf2 {[%clk 0:01:15.3]} 28... Bxf2 {[%clk 0:01:32.2]} 29. Bxb8
{[%clk 0:01:14.8]} 29... Bd4 {[%clk 0:01:23.7]} 30. Qb3+ {[%clk 0:01:03.2]}
30... Bf7 {[%clk 0:01:22.1]} 31. Qd3 {[%clk 0:01:00.3]} 31... Bg6 {[%clk
0:01:21.1]} 32. Qb3+ {[%clk 0:00:57.5]} 32... Kh8 {[%clk 0:01:17.8]} 33. Bf4
{[%clk 0:00:32.7]} 33... Bxe4+ {[%clk 0:01:15.9]} 34. Kh2 {[%clk 0:00:20.5]}
34... Qh5# {[%clk 0:01:15.5]} 0-1

[Event "Early-Titled-Tuesday-Blitz-February-20-2024"]
[Site "Chess.com"]
[Date "2024.02.20"]
[Round "10"]
[White "Chessmissile07"]
[Black "ansko1999"]
[Result "1-0"]
[WhiteElo "2883"]
[BlackElo "2698"]
[TimeControl "180+1"]
[EndTime "9:56:58 PST"]
[Termination "Chessmissile07 won by resignation"]

1. a3 {[%clk 0:03:00.9]} 1... g6 {[%clk 0:02:57.2]} 2. c4 {[%clk 0:02:57.7]}
2... Bg7 {[%clk 0:02:55.8]} 3. Nf3 {[%clk 0:02:57.7]} 3... c5 {[%clk 0:02:54.5]}
4. e3 {[%clk 0:02:51.8]} 4... Nf6 {[%clk 0:02:52.9]} 5. Nc3 {[%clk 0:02:51.2]}
5... O-O {[%clk 0:02:51.6]} 6. d4 {[%clk 0:02:35.3]} 6... cxd4 {[%clk
0:02:50.8]} 7. Nxd4 {[%clk 0:02:36.2]} 7... d5 {[%clk 0:02:49.1]} 8. Be2 {[%clk
0:02:34.2]} 8... dxc4 {[%clk 0:02:48]} 9. Bxc4 {[%clk 0:02:35.1]} 9... a6 {[%clk
0:02:46.2]} 10. Be2 {[%clk 0:02:32.3]} 10... b5 {[%clk 0:02:39.1]} 11. Bf3
{[%clk 0:02:32.3]} 11... Ra7 {[%clk 0:02:36.6]} 12. O-O {[%clk 0:02:32.2]} 12...
Rd7 {[%clk 0:02:34.7]} 13. Qe2 {[%clk 0:02:28.4]} 13... Bb7 {[%clk 0:02:22.7]}
14. Bxb7 {[%clk 0:02:18.7]} 14... Rxb7 {[%clk 0:02:23.6]} 15. Nb3 {[%clk
0:02:13]} 15... Nbd7 {[%clk 0:02:08.1]} 16. Rd1 {[%clk 0:02:04.5]} 16... Qc7
{[%clk 0:01:59.3]} 17. Bd2 {[%clk 0:01:54.1]} 17... Ne5 {[%clk 0:01:52.7]} 18.
Na2 {[%clk 0:01:48.3]} 18... Nc4 {[%clk 0:01:46.7]} 19. Bc3 {[%clk 0:01:47]}
19... Rd8 {[%clk 0:01:36.7]} 20. Nb4 {[%clk 0:01:36.2]} 20... Rxd1+ {[%clk
0:01:27.6]} 21. Rxd1 {[%clk 0:01:37.1]} 21... a5 {[%clk 0:01:24.9]} 22. Na6
{[%clk 0:01:36.1]} 22... Qc8 {[%clk 0:01:18.8]} 23. Nxa5 {[%clk 0:01:31.3]}
23... Nxa5 {[%clk 0:01:08.4]} 24. Bxa5 {[%clk 0:01:32.2]} 24... Ra7 {[%clk
0:01:08.5]} 25. Rd8+ {[%clk 0:01:31.4]} 25... Qxd8 {[%clk 0:01:04.4]} 26. Bxd8
{[%clk 0:01:32.3]} 26... Rxa6 {[%clk 0:01:04.9]} 27. Bxe7 {[%clk 0:01:22.1]}
27... Rc6 {[%clk 0:00:58.6]} 28. g3 {[%clk 0:01:17.1]} 28... Nd5 {[%clk
0:00:46.9]} 29. Bb4 {[%clk 0:01:07.1]} 29... Nxb4 {[%clk 0:00:37.8]} 30. axb4
{[%clk 0:01:08]} 30... Rc4 {[%clk 0:00:38.5]} 31. Qd2 {[%clk 0:00:59.6]} 31...
Bf8 {[%clk 0:00:38.8]} 32. Qd5 {[%clk 0:00:59.5]} 32... Rxb4 {[%clk 0:00:38.4]}
33. b3 {[%clk 0:00:59.8]} 1-0

[Event "Early-Titled-Tuesday-Blitz-February-20-2024"]
[Site "Chess.com"]
[Date "2024.02.20"]
[Round "10"]
[White "Muracle"]
[Black "GeorgiosSouleidis"]
[Result "0-1"]
[WhiteElo "2463"]
[BlackElo "2671"]
[TimeControl "180+1"]
[EndTime "9:57:02 PST"]
[Termination "GeorgiosSouleidis won by checkmate"]

1. Nf3 {[%clk 0:03:00.9]} 1... Nf6 {[%clk 0:02:55.1]} 2. b3 {[%clk 0:03:00.9]}
2... g6 {[%clk 0:02:55.7]} 3. Bb2 {[%clk 0:03:01.6]} 3... Bg7 {[%clk 0:02:56.6]}
4. e3 {[%clk 0:03:00.6]} 4... O-O {[%clk 0:02:54.6]} 5. g3 {[%clk 0:03:00.5]}
5... d5 {[%clk 0:02:48.6]} 6. Bg2 {[%clk 0:03:00.6]} 6... b6 {[%clk 0:02:45.6]}
7. O-O {[%clk 0:02:59.9]} 7... Bb7 {[%clk 0:02:46.1]} 8. d3 {[%clk 0:02:58.1]}
8... c5 {[%clk 0:02:46.3]} 9. Nbd2 {[%clk 0:02:58.7]} 9... Nbd7 {[%clk 0:02:43]}
10. Qe2 {[%clk 0:02:56]} 10... Qc7 {[%clk 0:02:43]} 11. c4 {[%clk 0:02:55.6]}
11... e5 {[%clk 0:02:39.7]} 12. e4 {[%clk 0:02:56]} 12... dxe4 {[%clk
0:02:36.4]} 13. dxe4 {[%clk 0:02:56.9]} 13... Rfe8 {[%clk 0:02:34]} 14. Rfe1
{[%clk 0:02:55.7]} 14... Nb8 {[%clk 0:02:31.3]} 15. Rad1 {[%clk 0:02:10.6]}
15... Nc6 {[%clk 0:02:30.7]} 16. Nb1 {[%clk 0:02:08.2]} 16... Nd4 {[%clk
0:02:31]} 17. Nxd4 {[%clk 0:02:07.9]} 17... exd4 {[%clk 0:02:29.9]} 18. Qd3
{[%clk 0:02:06.2]} 18... Re7 {[%clk 0:02:04.9]} 19. Nd2 {[%clk 0:02:05.9]} 19...
Rae8 {[%clk 0:02:04.1]} 20. Re2 {[%clk 0:02:06.2]} 20... Bh6 {[%clk 0:01:57.8]}
21. f4 {[%clk 0:02:05.1]} 21... Ng4 {[%clk 0:01:52.4]} 22. Rde1 {[%clk
0:02:00.4]} 22... Bg7 {[%clk 0:01:34.8]} 23. e5 {[%clk 0:01:58]} 23... Bxg2
{[%clk 0:01:32]} 24. Kxg2 {[%clk 0:01:58.9]} 24... Ne3+ {[%clk 0:01:31.9]} 25.
Kg1 {[%clk 0:01:42.2]} 25... f6 {[%clk 0:01:29.2]} 26. Nf1 {[%clk 0:01:41.5]}
26... Nxf1 {[%clk 0:01:21.9]} 27. Kxf1 {[%clk 0:01:41.2]} 27... fxe5 {[%clk
0:01:22.1]} 28. Qf3 {[%clk 0:01:38.2]} 28... Qd7 {[%clk 0:00:59.5]} 29. Bc1
{[%clk 0:01:32.5]} 29... d3 {[%clk 0:00:51.2]} 30. Rf2 {[%clk 0:01:13.4]} 30...
e4 {[%clk 0:00:47.7]} 31. Qd1 {[%clk 0:01:11.5]} 31... e3 {[%clk 0:00:46.1]} 32.
Bxe3 {[%clk 0:01:09.7]} 32... Rxe3 {[%clk 0:00:45.9]} 33. Rxe3 {[%clk
0:01:09.8]} 33... Rxe3 {[%clk 0:00:46.8]} 34. Rf3 {[%clk 0:01:10]} 34... Rxf3+
{[%clk 0:00:41.6]} 35. Qxf3 {[%clk 0:01:10.9]} 35... d2 {[%clk 0:00:40.3]} 36.
Qd1 {[%clk 0:01:10.8]} 36... Qd3+ {[%clk 0:00:40]} 37. Kg2 {[%clk 0:01:11.1]}
37... Qe4+ {[%clk 0:00:37.6]} 38. Kh3 {[%clk 0:01:09.8]} 38... Qe1 {[%clk
0:00:35.2]} 39. Qf3 {[%clk 0:01:09]} 39... d1=Q {[%clk 0:00:34.9]} 40. Qa8+
{[%clk 0:01:09.2]} 40... Bf8 {[%clk 0:00:35.2]} 41. Qxa7 {[%clk 0:01:09]} 41...
Qf1+ {[%clk 0:00:33.2]} 42. Kh4 {[%clk 0:01:09.9]} 42... Qh5# {[%clk 0:00:32.8]}
0-1

[Event "Early-Titled-Tuesday-Blitz-February-20-2024"]
[Site "Chess.com"]
[Date "2024.02.20"]
[Round "10"]
[White "Alexchess1984"]
[Black "sokidze"]
[Result "0-1"]
[WhiteElo "2663"]
[BlackElo "2798"]
[TimeControl "180+1"]
[EndTime "9:57:05 PST"]
[Termination "sokidze won by resignation"]

1. e4 {[%clk 0:02:53.7]} 1... e5 {[%clk 0:03:00.3]} 2. Nc3 {[%clk 0:02:52.1]}
2... Nf6 {[%clk 0:03:00.3]} 3. d4 {[%clk 0:02:51.6]} 3... exd4 {[%clk 0:02:56]}
4. Qxd4 {[%clk 0:02:51.5]} 4... Nc6 {[%clk 0:02:56.2]} 5. Qd3 {[%clk 0:02:50]}
5... Bb4 {[%clk 0:02:49.2]} 6. Bd2 {[%clk 0:02:49.4]} 6... O-O {[%clk
0:02:49.1]} 7. O-O-O {[%clk 0:02:49.5]} 7... Re8 {[%clk 0:02:48.1]} 8. Nge2
{[%clk 0:02:49.2]} 8... d6 {[%clk 0:02:20.8]} 9. Bg5 {[%clk 0:02:48.9]} 9... h6
{[%clk 0:02:18.2]} 10. Bxf6 {[%clk 0:02:48.3]} 10... Qxf6 {[%clk 0:02:18.2]} 11.
Nd5 {[%clk 0:02:49]} 11... Qd8 {[%clk 0:02:14.9]} 12. Nxb4 {[%clk 0:02:49.3]}
12... Nxb4 {[%clk 0:02:15.4]} 13. Qd2 {[%clk 0:02:49.2]} 13... Na6 {[%clk
0:01:28.4]} 14. Nc3 {[%clk 0:02:47]} 14... Nc5 {[%clk 0:01:28.3]} 15. f3 {[%clk
0:02:45.6]} 15... Be6 {[%clk 0:01:27.2]} 16. h4 {[%clk 0:02:41.1]} 16... Qf6
{[%clk 0:01:22.7]} 17. Be2 {[%clk 0:02:38.6]} 17... Bd7 {[%clk 0:00:54.3]} 18.
Nd5 {[%clk 0:02:30.1]} 18... Qd8 {[%clk 0:00:54.6]} 19. g4 {[%clk 0:02:30.3]}
19... Ne6 {[%clk 0:00:53]} 20. g5 {[%clk 0:02:27.7]} 20... hxg5 {[%clk
0:00:46.7]} 21. hxg5 {[%clk 0:02:27.6]} 21... c6 {[%clk 0:00:47.4]} 22. Ne3
{[%clk 0:02:04.8]} 22... Qxg5 {[%clk 0:00:35.6]} 23. Rdg1 {[%clk 0:02:04.3]}
23... Qe5 {[%clk 0:00:24.5]} 24. Nf5 {[%clk 0:01:58.2]} 24... g6 {[%clk
0:00:20.2]} 25. Rg4 {[%clk 0:01:44.6]} 25... Ng7 {[%clk 0:00:15.4]} 26. f4
{[%clk 0:01:22]} 26... Qxe4 {[%clk 0:00:10]} 27. Nxd6 {[%clk 0:01:12.1]} 27...
Qxh1+ {[%clk 0:00:09.6]} 28. Bd1 {[%clk 0:01:11.9]} 28... Bxg4 {[%clk
0:00:09.9]} 0-1

[Event "Early-Titled-Tuesday-Blitz-February-20-2024"]
[Site "Chess.com"]
[Date "2024.02.20"]
[Round "10"]
[White "Dinamo3"]
[Black "regenda"]
[Result "1-0"]
[WhiteElo "2524"]
[BlackElo "2276"]
[TimeControl "180+1"]
[EndTime "9:57:06 PST"]
[Termination "Dinamo3 won by checkmate"]

1. c4 {[%clk 0:03:00.9]} 1... Nf6 {[%clk 0:02:55]} 2. Nc3 {[%clk 0:02:46.9]}
2... g6 {[%clk 0:02:54.8]} 3. g3 {[%clk 0:02:47.1]} 3... d6 {[%clk 0:02:54.8]}
4. Bg2 {[%clk 0:02:47.5]} 4... Bg7 {[%clk 0:02:55.5]} 5. d3 {[%clk 0:02:48.3]}
5... O-O {[%clk 0:02:56.3]} 6. e4 {[%clk 0:02:49]} 6... c5 {[%clk 0:02:55.4]} 7.
Nge2 {[%clk 0:02:49.5]} 7... Ne8 {[%clk 0:02:55.5]} 8. O-O {[%clk 0:02:49.8]}
8... Nc7 {[%clk 0:02:56.1]} 9. Be3 {[%clk 0:02:50]} 9... Ne6 {[%clk 0:02:56.6]}
10. d4 {[%clk 0:02:50.5]} 10... cxd4 {[%clk 0:02:56.2]} 11. Nxd4 {[%clk
0:02:51.4]} 11... Nxd4 {[%clk 0:02:53.3]} 12. Bxd4 {[%clk 0:02:52.3]} 12... Bxd4
{[%clk 0:02:53.8]} 13. Qxd4 {[%clk 0:02:52.7]} 13... Nc6 {[%clk 0:02:54.7]} 14.
Qd2 {[%clk 0:02:52.3]} 14... Qa5 {[%clk 0:02:54.2]} 15. Rad1 {[%clk 0:02:46.5]}
15... Be6 {[%clk 0:02:51.9]} 16. b3 {[%clk 0:02:43.7]} 16... Rac8 {[%clk
0:02:51.8]} 17. f4 {[%clk 0:02:40.9]} 17... Bg4 {[%clk 0:02:48.7]} 18. Rc1
{[%clk 0:02:39.7]} 18... a6 {[%clk 0:02:42.1]} 19. h3 {[%clk 0:02:40]} 19... Bd7
{[%clk 0:02:39.2]} 20. e5 {[%clk 0:02:35.8]} 20... Rfd8 {[%clk 0:02:00.8]} 21.
exd6 {[%clk 0:02:23.4]} 21... Bf5 {[%clk 0:01:59.4]} 22. Qe3 {[%clk 0:02:12.5]}
22... Rxd6 {[%clk 0:01:56.6]} 23. Rfd1 {[%clk 0:01:38.6]} 23... Rxd1+ {[%clk
0:01:46.7]} 24. Rxd1 {[%clk 0:01:36.1]} 24... Rd8 {[%clk 0:01:47.6]} 25. Rxd8+
{[%clk 0:01:31.5]} 25... Qxd8 {[%clk 0:01:48.5]} 26. g4 {[%clk 0:01:31.6]} 26...
Bc8 {[%clk 0:01:39.5]} 27. Bxc6 {[%clk 0:01:10.6]} 27... bxc6 {[%clk 0:01:40.4]}
28. Kf2 {[%clk 0:01:11.1]} 28... Kg7 {[%clk 0:00:43.5]} 29. Ne2 {[%clk
0:01:06.2]} 29... f6 {[%clk 0:00:29.9]} 30. a4 {[%clk 0:01:04.5]} 30... Qd1
{[%clk 0:00:27.4]} 31. Qxe7+ {[%clk 0:01:04.1]} 31... Kh6 {[%clk 0:00:26.2]} 32.
Qf8# {[%clk 0:00:49.6]} 1-0

[Event "Early-Titled-Tuesday-Blitz-February-20-2024"]
[Site "Chess.com"]
[Date "2024.02.20"]
[Round "10"]
[White "ActorXu"]
[Black "TigrVShlyape"]
[Result "1/2-1/2"]
[WhiteElo "2832"]
[BlackElo "2914"]
[TimeControl "180+1"]
[EndTime "9:57:11 PST"]
[Termination "Game drawn by repetition"]

1. e4 {[%clk 0:03:00.9]} 1... c5 {[%clk 0:02:56.1]} 2. Nf3 {[%clk 0:03:00.8]}
2... e6 {[%clk 0:02:56]} 3. d4 {[%clk 0:03:01.4]} 3... cxd4 {[%clk 0:02:56.4]}
4. Nxd4 {[%clk 0:03:02.2]} 4... a6 {[%clk 0:02:56.9]} 5. c4 {[%clk 0:03:00.6]}
5... Nf6 {[%clk 0:02:53.9]} 6. Nc3 {[%clk 0:03:01]} 6... Bb4 {[%clk 0:02:54]} 7.
Qd3 {[%clk 0:03:00]} 7... Nc6 {[%clk 0:02:53]} 8. Nxc6 {[%clk 0:02:58.7]} 8...
dxc6 {[%clk 0:02:52.3]} 9. Qxd8+ {[%clk 0:02:58.9]} 9... Kxd8 {[%clk 0:02:52.7]}
10. e5 {[%clk 0:02:58.9]} 10... Nd7 {[%clk 0:02:51.3]} 11. Bf4 {[%clk
0:02:54.5]} 11... f6 {[%clk 0:02:36.6]} 12. O-O-O {[%clk 0:02:48.1]} 12... Ke7
{[%clk 0:02:31.8]} 13. Ne4 {[%clk 0:02:33.9]} 13... Nxe5 {[%clk 0:02:29.8]} 14.
Bxe5 {[%clk 0:02:24.7]} 14... fxe5 {[%clk 0:02:29.7]} 15. c5 {[%clk 0:02:19.7]}
15... Bd7 {[%clk 0:02:28.7]} 16. Bc4 {[%clk 0:02:06]} 16... Rad8 {[%clk
0:02:18.7]} 17. Rd3 {[%clk 0:01:42.6]} 17... Bc8 {[%clk 0:02:13.6]} 18. Rhd1
{[%clk 0:01:38.6]} 18... Rd4 {[%clk 0:02:03.2]} 19. Rxd4 {[%clk 0:01:34.3]}
19... exd4 {[%clk 0:02:03.6]} 20. Rxd4 {[%clk 0:01:34.8]} 20... e5 {[%clk
0:02:03.9]} 21. Rd3 {[%clk 0:01:14.5]} 21... Bf5 {[%clk 0:01:57.7]} 22. Rb3
{[%clk 0:01:14.3]} 22... a5 {[%clk 0:01:57.8]} 23. Nd6 {[%clk 0:00:35.2]} 23...
Bc8 {[%clk 0:01:40]} 24. Nxc8+ {[%clk 0:00:26]} 24... Rxc8 {[%clk 0:01:38.7]}
25. a3 {[%clk 0:00:26.6]} 25... Bxc5 {[%clk 0:01:38.2]} 26. Rxb7+ {[%clk
0:00:27.3]} 26... Kf6 {[%clk 0:01:35.1]} 27. Rf7+ {[%clk 0:00:26.8]} 27... Kg6
{[%clk 0:01:35.2]} 28. f3 {[%clk 0:00:23.7]} 28... Bg1 {[%clk 0:01:21.9]} 29. h3
{[%clk 0:00:22.2]} 29... Bd4 {[%clk 0:01:20.4]} 30. Rd7 {[%clk 0:00:22.1]} 30...
Rb8 {[%clk 0:01:16.9]} 31. b3 {[%clk 0:00:20.2]} 31... c5 {[%clk 0:01:16.9]} 32.
Bd3+ {[%clk 0:00:19.8]} 32... Kh6 {[%clk 0:01:15.9]} 33. Bc4 {[%clk 0:00:15.7]}
33... Rf8 {[%clk 0:01:12.8]} 34. a4 {[%clk 0:00:15.7]} 34... g6 {[%clk
0:01:09.5]} 35. Bd3 {[%clk 0:00:15.6]} 35... Rb8 {[%clk 0:01:08.7]} 36. Bc4
{[%clk 0:00:15.5]} 36... Rf8 {[%clk 0:01:07.9]} 37. Bd3 {[%clk 0:00:15.7]} 37...
Rb8 {[%clk 0:01:08]} 38. Bc4 {[%clk 0:00:15.9]} 38... Rf8 {[%clk 0:01:08.1]}
1/2-1/2